bitfinex/quotes_ETHUSD_20220202
["timestamp","ask_amount","ask_price","bid_price","bid_amount"]
[1643817564393,1.12078101,2666.0,2665.4,1.87606]
[1643817564638,0.63826881,2666.0,2665.4,1.87606]
[1643817564838,0.1875,2665.9,2665.4,1.87606]
[1643817565037,0.1875,2665.9,2665.0,2.06354]
[1643817565238,0.1875,2665.9,2665.4,0.90575734]
[1643817566241,0.93819,2665.8,2665.4,0.90575734]
[1643817566443,1.23819,2665.8,2665.6,0.21192321]
[1643817566842,0.3,2665.8,2665.6,0.21192321]
[1643817567042,0.4875,2666.0,2665.6,0.21192321]
[1643817567243,0.1875,2666.3,2665.6,1.25642321]
[1643817567442,0.1875,2666.4,2665.6,1.25642321]
[1643817567640,0.1875,2666.4,2665.7,0.93792]
[1643817567842,0.1875,2666.4,2666.1,0.93992215]
[1643817568042,0.1875,2666.4,2665.8,0.93792]
[1643817568300,0.1875,2666.4,2665.6,0.21192321]
[1643817568301,1.63706805,2666.2,2665.6,0.21192321]
[1643817568489,0.93805,2666.2,2665.5,2.06344]
[1643817568690,0.93805,2666.2,2665.5,0.36777479]
[1643817569092,1.23805,2666.2,2665.8,0.71686688]
[1643817569291,0.00501205,2666.0,2665.8,0.71686688]
[1643817569491,0.00501205,2666.0,2665.9,2.90397393]
[1643817570289,0.1875,2666.4,2665.9,2.90397393]
[1643817570490,0.005012,2666.1,2666.0,0.93789]
[1643817571290,0.005012,2666.1,2665.8,1.87577]
[1643817571492,0.434,2666.4,2665.8,2.73021842]
[1643817571891,0.00501194,2666.2,2665.8,3.66817842]
[1643817572134,0.00501194,2666.2,2665.8,2.81373]
[1643817572833,0.00501197,2666.1,2665.8,2.81373]
[1643817573734,0.00501197,2666.1,2665.8,1.87577]
[1643817573934,2.92906289,2666.4,2665.6,2.83036086]
[1643817574137,0.43726356,2666.1,2665.3,2.06364]
[1643817574339,0.43726356,2666.1,2665.3,2.05826646]
[1643817574340,0.6215,2666.0,2665.3,2.05826646]
[1643817574740,0.4875,2666.0,2665.4,1.87617]
[1643817574935,0.3,2666.0,2665.4,1.12556]
[1643817575134,0.1875,2666.3,2665.4,1.12556]
[1643817575334,0.0032635,2665.8,2665.4,1.12556]
[1643817575534,0.0032635,2665.8,2665.5,0.70033485]
[1643817576187,0.1875,2666.5,2665.5,0.70033485]
[1643817576188,0.1875,2666.5,2665.8,0.93787]
[1643817576387,0.1875,2666.6,2665.8,1.87573]
[1643817576589,0.01305047,2666.6,2666.2,0.7631066]
[1643817576794,0.01305047,2666.6,2665.7,3.75146]
[1643817576795,0.69901805,2666.5,2665.7,3.75146]
[1643817576992,0.01305047,2666.6,2665.7,3.75146]
[1643817576993,0.89956852,2666.6,2665.7,3.75146]
[1643817577189,0.734,2666.5,2665.7,3.75146]
[1643817577588,0.43912927,2666.4,2665.7,3.75146]
[1643817577790,0.0050178,2666.3,2665.7,3.75146]
[1643817577990,0.43912927,2666.2,2666.0,0.17582744]
[1643817578191,0.43912927,2666.2,2665.7,3.75146]
[1643817578391,1.17312927,2666.2,2665.7,3.75146]
[1643817578592,0.43912927,2666.1,2665.7,3.75146]
[1643817578790,0.43912927,2666.1,2665.7,0.93805]
[1643817578991,0.44414718,2666.1,2665.8,0.74945389]
[1643817579192,0.43912927,2666.0,2665.8,0.74945389]
[1643817579391,0.43912927,2666.0,2665.8,0.93802]
[1643817579835,0.73912927,2666.0,2665.8,0.93802]
[1643817580133,0.43912927,2665.9,2665.8,0.93802]
[1643817580544,0.00501793,2666.0,2665.8,0.93802]
[1643817581138,0.434,2666.4,2665.8,0.93802]
[1643817581336,0.00501793,2666.0,2665.8,2.81381]
[1643817581634,0.00501793,2666.0,2665.9,4.62152346]
[1643817582239,0.88651805,2666.7,2666.0,1.87588]
[1643817582436,0.88651805,2666.7,2666.4,0.93791]
[1643817582437,0.01971613,2666.5,2666.4,0.93791]
[1643817582637,0.45901866,2666.5,2666.4,0.93791]
[1643817582836,0.75901866,2666.5,2666.4,0.93791]
[1643817583037,0.75901866,2666.5,2666.4,0.20358444]
[1643817583484,0.73930253,2666.5,2666.4,0.20358444]
[1643817588055,0.43930253,2666.5,2666.4,0.20358444]
[1643817588950,0.43930253,2666.5,2666.2,0.1875]
[1643817589148,0.43930253,2666.4,2666.2,0.87964297]
[1643817589348,0.43930253,2666.3,2666.2,0.87964297]
[1643817589546,0.43930253,2666.3,2666.2,0.1875]
[1643817589749,0.43930253,2666.3,2666.0,2.0]
[1643817589750,0.73930253,2666.3,2666.0,2.0]
[1643817589956,0.43930253,2666.2,2666.0,2.0]
[1643817590154,4.53832058,2666.1,2666.0,2.0]
[1643817590348,5.02582058,2666.1,2666.0,2.0]
[1643817590547,6.02582058,2666.1,2666.0,2.0]
[1643817590788,5.32680253,2666.1,2666.0,2.0]
[1643817591387,8.47091116,2666.1,2666.0,0.0001]
[1643817591787,4.07091116,2666.1,2666.0,0.0001]
[1643817591988,2.06236711,2666.1,2666.0,0.0001]
[1643817592188,1.36080253,2666.1,2666.0,0.0001]
[1643817592387,0.62680253,2666.1,2666.0,0.0001]
[1643817592588,0.43930253,2666.1,2666.0,0.0001]
[1643817593592,0.44227465,2666.1,2666.0,0.0001]
[1643817594188,0.44227465,2666.1,2666.0,0.18436618]
[1643817595060,0.44227465,2666.1,2666.0,2.78436618]
[1643817595761,0.39227465,2666.1,2666.0,0.18436618]
[1643817598164,0.39227465,2666.1,2666.0,0.37124618]
[1643817598385,0.39227465,2666.1,2666.0,0.18436618]
[1643817599185,0.39227465,2666.1,2666.0,410.446462]
[1643817599588,0.39227465,2666.1,2666.0,407.90294129]
[1643817599589,0.69227465,2666.1,2666.0,407.90294129]
[1643817599786,0.87977465,2666.1,2666.0,407.90294129]
[1643817600189,0.49047212,2666.1,2666.0,407.90294129]
[1643817600395,1.42859718,2666.1,2666.0,407.90294129]
[1643817600595,3.97859718,2666.1,2666.0,407.60491129]
[1643817600789,3.57082224,2666.1,2666.0,407.60491129]
[1643817600989,4.57082224,2666.1,2666.0,407.60491129]
[1643817601189,2.02082224,2666.1,2666.0,407.60491129]
[1643817601389,1.02082224,2666.1,2666.0,407.60491129]
[1643817601590,3.80021223,2666.1,2666.0,407.60491129]
[1643817601789,4.34021224,2666.1,2666.0,407.60491129]
[1643817602042,8.6044542,2666.1,2666.0,407.60491129]
[1643817602242,8.79503622,2666.1,2666.0,407.60491129]
[1643817602839,9.00661622,2666.1,2666.0,407.60491129]
[1643817603042,45.29987691,2666.1,2666.0,407.60491129]
[1643817603244,45.29987691,2666.1,2666.0,401.97466129]
[1643817603440,45.30086762,2666.1,2666.0,401.97466129]
[1643817603640,44.30086763,2666.1,2666.0,401.97466129]
[1643817604042,45.30086762,2666.1,2666.0,401.97466129]
[1643817604543,44.11028561,2666.1,2666.0,401.97466129]
[1643817605041,39.86028561,2666.1,2666.0,401.97466129]
[1643817605241,3.35544491,2666.1,2666.0,401.97466129]
[1643817606195,1.57605491,2666.1,2666.0,401.97466129]
[1643817606395,3.45779207,2666.1,2666.0,401.97466129]
[1643817607293,0.938,2666.3,2666.0,401.97466129]
[1643817607294,1.88135942,2666.3,2666.0,401.97466129]
[1643817607497,1.41172542,2666.1,2666.0,401.97466129]
[1643817607692,1.95172542,2666.1,2666.0,401.97466129]
[1643817607893,0.54,2666.1,2666.0,401.97466129]
[1643817608092,2.42135942,2666.1,2666.0,401.97466129]
[1643817608494,0.54,2666.1,2666.0,401.97466129]
[1643817608693,0.54396283,2666.1,2666.0,400.27897878]
[1643817609294,40.54396283,2666.1,2666.0,400.27897878]
[1643817609556,43.53334133,2666.1,2666.0,400.27897878]
[1643817609942,45.41470075,2666.1,2666.0,400.27897878]
[1643817610144,43.53334133,2666.1,2666.0,400.27897878]
[1643817610344,43.53334133,2666.1,2666.0,396.88721919]
[1643817610345,44.83334133,2666.1,2666.0,396.88721919]
[1643817610645,60.83955383,2666.1,2666.0,371.14369731]
[1643817610845,63.37711143,2666.1,2666.0,371.14369731]
[1643817611046,63.39871143,2666.1,2666.0,365.51194731]
[1643817611243,62.82164383,2666.1,2666.0,365.51194731]
[1643817611444,61.62374384,2666.1,2666.0,359.88072731]
[1643817611646,62.6611383,2666.1,2666.0,359.88072731]
[1643817611844,57.63041035,2666.1,2666.0,359.88072731]
[1643817612046,56.54562525,2666.1,2666.0,359.88072731]
[1643817612248,56.54562525,2666.1,2666.0,345.00340731]
[1643817612645,57.48401525,2666.1,2666.0,311.30311731]
[1643817612845,58.49685834,2666.1,2666.0,310.87601731]
[1643817613045,57.55846834,2666.1,2665.1,0.1875]
[1643817613294,0.6341,2665.2,2665.1,0.1875]
[1643817613496,1.64378382,2665.2,2665.1,0.1875]
[1643817613698,0.16602606,2665.2,2665.1,0.1875]
[1643817613895,3.0,2665.1,2665.0,2.612455]
[1643817614097,0.54,2665.1,2665.0,5.5e-05]
[1643817614296,0.54,2665.1,2663.5,7.5857]
[1643817614297,3.31939,2665.1,2663.5,7.5857]
[1643817614497,0.70602577,2664.5,2663.5,7.5857]
[1643817614697,0.70602577,2664.3,2663.5,7.5857]
[1643817614897,2.85437575,2664.2,2663.2,3.62345194]
[1643817615101,0.70602577,2664.1,2663.9,0.01890379]
[1643817615300,2.91525594,2664.0,2663.9,0.01890379]
[1643817615498,0.93895,2664.0,2663.9,0.01890379]
[1643817615698,0.20756752,2664.0,2663.9,0.01890379]
[1643817615898,0.3,2664.0,2663.1,0.01]
[1643817616098,4.02623998,2664.2,2663.3,2.81654]
[1643817616099,0.20756752,2663.9,2663.3,2.81654]
[1643817616302,0.20756752,2663.8,2663.4,1.38487123]
[1643817616498,2.14834998,2664.2,2663.5,1.36873245]
[1643817616698,0.2073361,2664.1,2663.5,1.36873245]
[1643817616898,0.2073361,2664.1,2663.5,2.19337384]
[1643817617136,0.2073361,2664.1,2663.5,0.82464139]
[1643817617337,2.14834998,2664.2,2663.5,3.64091139]
[1643817617541,2.14834998,2664.2,2663.7,0.00367477]
[1643817617737,2.44834998,2664.2,2663.7,0.00367477]
[1643817617942,0.01257685,2663.9,2663.7,0.00367477]
[1643817618138,0.54,2663.8,2663.7,0.00367477]
[1643817618339,0.54,2663.8,2663.4,0.1877]
[1643817618340,3.56107,2663.8,2663.4,0.1877]
[1643817618538,2.32194,2663.8,2662.9,0.1877]
[1643817618739,0.21184329,2663.0,2662.7,0.80421378]
[1643817618943,1.3,2663.7,2662.8,0.18903539]
[1643817618944,1.87855,2663.3,2662.8,0.18903539]
[1643817619338,0.93928,2663.0,2662.8,0.19903539]
[1643817619539,1.22928,2663.0,2662.3,0.18903539]
[1643817619741,0.93928,2663.0,2662.3,1.12829539]
[1643817619940,1.87855,2663.3,2662.3,2.06749539]
[1643817620141,2.14834998,2662.6,2662.3,0.18903539]
[1643817620814,2.14834998,2662.6,2662.4,0.71476837]
[1643817621018,2.14834998,2662.6,2662.5,3.2377]
[1643817622317,0.93922,2663.1,2662.6,1.0741]
[1643817622519,0.18234122,2663.2,2663.1,0.21248269]
[1643817622717,0.18234122,2663.2,2663.1,1.15217912]
[1643817622925,0.18234122,2663.2,2663.1,1.33905912]
[1643817622926,4.122e-05,2663.2,2663.1,1.33905912]
[1643817623118,4.122e-05,2663.2,2663.1,1.12657643]
[1643817623622,4.122e-05,2663.2,2663.1,0.1877]
[1643817624223,4.122e-05,2663.2,2663.1,0.16401086]
[1643817624645,4.122e-05,2663.2,2663.1,0.70725048]
[1643817624843,4.122e-05,2663.2,2663.0,3.0268313]
[1643817625045,4.122e-05,2663.2,2663.0,3.00927836]
[1643817625343,4.122e-05,2663.2,2663.0,1.13139836]
[1643817625544,4.122e-05,2663.2,2663.0,0.93898]
[1643817625744,4.122e-05,2663.2,2663.0,0.9404031]
[1643817626146,0.03158954,2663.6,2663.0,1.8793431]
[1643817626346,0.03158954,2663.6,2663.1,0.02618152]
[1643817626547,0.03158954,2663.6,2663.0,0.0014231]
[1643817626750,0.1877,2663.5,2662.9,0.1877]
[1643817626945,0.1877,2663.5,2662.9,1.12682]
[1643817627143,0.1877,2663.5,2663.2,0.22242692]
[1643817627144,2.06604,2663.5,2663.2,0.22242692]
[1643817627544,2.06604,2663.5,2663.2,0.004718]
[1643817627747,2.06604,2663.5,2663.4,0.67841112]
[1643817628392,0.1877,2663.5,2663.4,0.67841112]
[1643817628592,0.97068954,2663.6,2663.4,0.67841112]
[1643817628593,0.03158954,2663.6,2663.4,0.67841112]
[1643817628988,0.03158954,2663.6,2663.4,0.44740693]
[1643817629394,0.1877,2664.0,2663.5,0.3783711]
[1643817629594,0.12276015,2664.1,2663.5,0.57889759]
[1643817629792,0.12276015,2664.1,2663.5,0.39201759]
[1643817629990,0.12276015,2664.1,2663.5,0.3791911]
[1643817630393,0.12276015,2664.1,2663.9,0.97697365]
[1643817630691,0.12276015,2664.1,2663.7,0.00142272]
[1643817631094,0.12276015,2664.1,2663.7,0.94022272]
[1643817631294,1.06167015,2664.1,2663.7,0.00142272]
[1643817631596,0.1875,2664.0,2663.5,0.90510569]
[1643817631795,1.87808,2663.9,2663.8,0.00471703]
[1643817632038,0.4875,2663.9,2663.8,0.00471703]
[1643817632238,0.4875,2664.0,2663.8,0.00471703]
[1643817632436,0.1875,2664.0,2663.8,0.00471703]
[1643817632838,0.1875,2664.0,2663.7,0.93885]
[1643817633038,0.31026015,2664.1,2663.8,0.00471703]
[1643817633638,1.24915015,2664.1,2663.8,0.00471703]
[1643817633839,1.54915015,2664.1,2663.8,0.00471703]
[1643817634038,1.24915015,2664.1,2663.6,0.93219832]
[1643817634239,1.54915015,2664.1,2663.8,0.00471694]
[1643817635238,1.54915015,2664.1,2663.4,0.17716548]
[1643817635438,1.54915015,2664.1,2663.8,0.00471694]
[1643817635640,2.08915015,2664.1,2663.8,0.00471694]
[1643817635893,0.31026015,2664.1,2663.8,0.00471694]
[1643817636389,0.31026015,2664.1,2663.4,0.1875]
[1643817636603,0.21602136,2664.0,2663.4,0.1875]
[1643817636791,0.1877,2663.9,2663.8,0.00471694]
[1643817636989,2.06591,2663.9,2663.8,0.00471694]
[1643817637195,2.90591,2663.9,2663.8,0.00471694]
[1643817637390,4.16604904,2663.9,2663.8,0.00471694]
[1643817637590,4.16604904,2663.9,2662.9,1.87817]
[1643817637891,0.2051405,2663.6,2662.9,2.09909694]
[1643817638090,0.93916,2663.4,2662.9,2.09909694]
[1643817638292,0.93916,2663.4,2662.9,1.87817]
[1643817638593,0.93916,2663.4,2662.8,0.00133539]
[1643817638594,0.25731396,2663.3,2662.8,0.00133539]
[1643817638993,0.1877,2663.3,2662.9,0.93915]
[1643817639191,0.93906,2663.6,2662.9,0.93915]
[1643817639392,0.93906,2663.6,2663.2,0.1621448]
[1643817639633,0.2531658,2663.5,2662.9,0.1877]
[1643817639839,0.93906,2663.6,2662.9,0.1877]
[1643817640034,0.2531908,2663.5,2663.3,0.83436424]
[1643817640234,2.23906,2663.6,2663.3,0.83436424]
[1643817640436,0.25325423,2663.5,2663.3,0.83436424]
[1643817640836,2.23906,2663.6,2663.3,0.83436424]
[1643817641038,0.25333244,2663.5,2663.1,0.22677252]
[1643817641237,0.25333244,2663.5,2663.1,0.22206479]
[1643817641439,0.25333244,2663.5,2662.8,0.00133539]
[1643817641638,0.93922,2663.3,2662.9,0.01883197]
[1643817642035,0.93922,2663.3,2663.0,0.71952422]
[1643817642236,2e-05,2663.3,2662.9,0.95801197]
[1643817642443,2e-05,2663.3,2662.8,0.00133539]
[1643817642636,0.25391691,2663.3,2662.8,0.00133539]
[1643817643035,1.19313691,2663.3,2662.8,0.00133539]
[1643817643288,1.19313691,2663.3,2662.8,0.95066596]
[1643817643289,0.25393228,2663.2,2662.8,0.95066596]
[1643817643584,0.25393228,2663.2,2662.8,0.00133539]
[1643817643784,0.25393228,2663.2,2662.5,0.00133539]
[1643817643785,0.1877,2663.1,2662.5,0.00133539]
[1643817643987,1.19341228,2663.0,2662.5,0.00133539]
[1643817644187,0.25393228,2662.9,2662.5,0.00133539]
[1643817644494,0.25393228,2662.9,2661.8,0.73583843]
[1643817644495,0.01277405,2662.6,2661.8,0.73583843]
[1643817644686,0.01277405,2662.6,2661.8,0.93868234]
[1643817644687,0.44163228,2662.5,2661.8,0.93868234]
[1643817644886,0.1877,2662.5,2661.8,0.93868234]
[1643817645285,3.88317327,2662.4,2662.1,0.00469772]
[1643817645786,1.23965,2662.4,2662.1,0.00469772]
[1643817646186,1.23965,2662.4,2661.8,0.93868234]
[1643817646387,1.23965,2662.4,2661.8,0.73583843]
[1643817647034,2.87735,2662.4,2661.8,0.73583843]
[1643817647436,0.1877,2662.3,2661.8,0.73583843]
[1643817647639,2.57735,2662.4,2661.8,0.73583843]
[1643817647640,3.06505,2662.4,2661.8,0.73583843]
[1643817647836,0.93963,2662.1,2661.6,0.17601561]
[1643817648036,0.93963,2662.1,2661.4,3.0691621]
[1643817648037,0.93963,2662.1,2661.4,0.65393722]
[1643817648240,0.93963,2662.1,2661.4,0.60393722]
[1643817648241,44.35638991,2662.0,2661.4,0.60393722]
[1643817648436,2.33873497,2661.9,2661.4,0.60393722]
[1643817648636,0.1877,2661.8,2661.4,0.60393722]
[1643817648836,0.3333,2661.8,2661.4,0.60393722]
[1643817649038,2.8339,2661.8,2661.4,0.40661944]
[1643817649235,2.8379,2661.8,2661.4,0.40661944]
[1643817649435,0.1448,2661.7,2661.4,0.40661944]
[1643817649637,2.8315,2661.8,2661.4,0.40661944]
[1643817650039,0.93992,2661.8,2661.5,0.00468703]
[1643817650248,1.23992,2661.8,2661.5,0.00468703]
[1643817650887,1.23992,2661.8,2661.4,0.40661944]
[1643817651088,2.36863292,2661.7,2661.4,0.40661944]
[1643817651292,4.35223292,2661.7,2661.5,0.00468695]
[1643817651489,0.6836,2661.7,2661.6,0.88970649]
[1643817651690,0.6836,2661.7,2661.5,0.01468695]
[1643817651886,0.9836,2661.7,2661.5,0.00468695]
[1643817652091,0.9836,2661.7,2661.4,0.40661944]
[1643817652092,0.6836,2661.7,2661.4,0.40661944]
[1643817652287,0.9836,2661.7,2661.4,0.40661944]
[1643817652489,1.16825378,2661.7,2661.5,0.00468703]
[1643817653287,0.86825378,2661.7,2661.4,0.40661944]
[1643817653688,0.86825378,2661.7,2661.5,0.00468703]
[1643817653888,0.6836,2661.7,2661.5,0.00468703]
[1643817654287,2.9,2661.6,2661.1,0.01875095]
[1643817654549,2.9,2661.6,2660.6,0.01]
[1643817654550,0.94015,2661.3,2660.6,0.01]
[1643817654743,0.94015,2661.3,2660.1,0.01]
[1643817654744,1.57905,2661.3,2660.1,0.01]
[1643817654943,1.57905,2661.3,2661.1,0.01875095]
[1643817654944,0.21303973,2661.2,2661.1,0.01875095]
[1643817655143,1.00053973,2661.2,2661.1,0.01875095]
[1643817655345,1.29973973,2661.2,2661.1,0.01875095]
[1643817655549,1.30133973,2661.2,2661.1,0.01875095]
[1643817655743,1.29813973,2661.2,2660.2,0.18501426]
[1643817655946,0.9402,2660.9,2660.3,0.18688]
[1643817656245,2.2402,2660.9,2660.3,0.18688]
[1643817656448,0.5966,2660.8,2660.3,0.18688]
[1643817656647,0.5966,2660.8,2659.9,0.02]
[1643817656648,35.4811607,2660.7,2659.9,0.02]
[1643817656849,9.48018844,2660.6,2659.9,0.02]
[1643817657047,0.1879,2660.5,2659.9,0.02]
[1643817657245,0.451,2660.4,2659.9,0.02]
[1643817657446,0.6206,2660.4,2659.9,0.02]
[1643817657646,0.6206,2660.4,2659.1,0.04696327]
[1643817657647,0.751,2660.4,2658.8,4.224895]
[1643817657849,0.751,2660.4,2658.5,0.01]
[1643817657850,1.78194,2660.2,2658.5,0.01]
[1643817658051,0.01223351,2659.3,2658.6,1.26475394]
[1643817658289,0.01203003,2659.3,2658.6,0.69795394]
[1643817658489,35.30529073,2659.3,2659.1,0.08891116]
[1643817658699,35.60529073,2659.3,2659.1,0.03891116]
[1643817658888,35.60529073,2659.3,2658.5,0.84924]
[1643817658889,0.22294925,2659.2,2658.5,0.84924]
[1643817659088,1.541,2659.2,2658.0,0.0008]
[1643817659287,0.541,2659.2,2657.8,0.1705468]
[1643817659488,0.541,2659.2,2657.9,0.18688]
[1643817659889,0.51548302,2659.2,2658.2,0.78189246]
[1643817660089,0.17364507,2658.9,2658.2,0.78189246]
[1643817660288,0.17364507,2658.9,2658.3,0.00130645]
[1643817660891,0.17364507,2658.9,2658.0,0.00130645]
[1643817661391,0.20696104,2658.4,2658.0,0.00130645]
[1643817661590,2.94756552,2658.8,2657.8,0.01130645]
[1643817661591,3.24756552,2658.8,2657.8,0.01130645]
[1643817661793,3.24756552,2658.8,2658.0,0.67196271]
[1643817662251,3.24756552,2658.8,2658.1,0.00130645]
[1643817662252,2.94756552,2658.8,2658.1,0.00130645]
[1643817662451,2.94756552,2658.8,2658.1,0.20516724]
[1643817662650,0.188,2659.3,2658.6,0.18624652]
[1643817662851,0.03158954,2659.4,2658.0,0.69196271]
[1643817662852,0.21958954,2659.4,2658.2,0.02212319]
[1643817663051,2.94712205,2659.2,2658.3,0.01]
[1643817663254,2.95218039,2659.2,2658.3,0.00445851]
[1643817663852,2.95218039,2659.2,2659.0,0.21830345]
[1643817664053,0.00505834,2659.2,2658.8,0.18688]
[1643817664251,0.03158954,2659.4,2658.5,0.17749506]
[1643817664452,0.03158954,2659.4,2658.6,0.00445801]
[1643817664453,0.00505876,2659.2,2658.6,0.00445801]
[1643817664654,0.00505876,2659.2,2658.6,0.00576446]
[1643817664952,0.00505876,2659.2,2659.1,4.77564753]
[1643817665651,0.00505923,2659.3,2659.1,4.77564753]
[1643817665890,0.00505923,2659.3,2659.1,4.77695398]
[1643817666085,0.00505923,2659.3,2659.2,4.71153525]
[1643817666485,0.21958954,2659.4,2659.2,4.71153525]
[1643817666687,0.21958954,2659.4,2659.1,0.77695398]
[1643817666888,0.21958954,2659.4,2659.1,0.00130645]
[1643817666889,0.22464871,2659.4,2659.1,0.00130645]
[1643817667087,0.22464871,2659.4,2659.0,0.00445742]
[1643817667688,0.22464871,2659.4,2658.7,0.00130645]
[1643817667689,0.21958954,2659.4,2658.7,0.00130645]
[1643817667889,0.21958954,2659.4,2658.9,0.91156655]
[1643817668088,0.0050592,2659.3,2659.0,0.00576387]
[1643817668887,0.21958954,2659.4,2658.9,0.86733042]
[1643817669290,0.00505923,2659.3,2659.0,0.00445742]
[1643817669543,0.18003163,2659.2,2659.0,0.00445742]
[1643817670245,0.18003163,2659.2,2658.9,0.86733042]
[1643817670443,0.188,2659.3,2658.9,0.86733042]
[1643817670647,0.188,2659.3,2659.0,0.19854417]
[1643817670844,0.188,2659.3,2659.0,2.08901417]
[1643817671048,0.188,2659.3,2659.1,0.01]
[1643817671743,0.19306685,2659.3,2659.2,5.4]
[1643817671949,0.19306685,2659.3,2659.2,5.41]
[1643817672545,0.188,2659.3,2659.2,5.41]
[1643817672744,0.188,2659.3,2659.2,0.01]
[1643817672948,0.188,2659.3,2659.1,0.01]
[1643817673893,0.188,2659.3,2659.1,0.95026]
[1643817674093,0.19306682,2659.3,2659.2,3.9]
[1643817674291,0.19306682,2659.3,2659.2,3.91]
[1643817675092,0.188,2659.3,2659.2,5.76]
[1643817675893,0.14308363,2659.8,2659.4,0.01]
[1643817676093,0.14308363,2659.8,2659.4,0.02]
[1643817676298,0.14308363,2659.8,2659.4,0.96027]
[1643817676492,0.14308363,2659.8,2659.4,0.95027]
[1643817676692,0.14308363,2659.8,2659.6,0.90314221]
[1643817678343,0.14308363,2659.8,2659.5,0.01]
[1643817678545,1.01638363,2659.8,2659.1,0.01]
[1643817678744,1.02262248,2659.8,2659.1,0.01]
[1643817678950,1.02638363,2659.8,2659.1,0.01]
[1643817679346,1.02638363,2659.8,2659.7,0.86614122]
[1643817679550,0.541,2660.2,2659.9,0.1246]
[1643817679754,0.21148885,2660.4,2659.9,1.1346]
[1643817679948,0.1879,2660.3,2660.1,0.01270407]
[1643817680350,0.1879,2660.3,2660.2,6.59886987]
[1643817680548,0.1879,2660.3,2660.2,0.84886987]
[1643817680549,0.1312,2660.3,2660.2,0.84886987]
[1643817680809,0.1312,2660.3,2660.1,0.02270407]
[1643817680994,0.1312,2660.3,2660.2,4.0]
[1643817681195,0.05451275,2660.9,2660.4,2.5]
[1643817681196,0.07477398,2660.9,2660.4,2.5]
[1643817681395,0.07477398,2660.9,2660.5,0.01]
[1643817681396,0.10238787,2660.9,2660.5,0.01]
[1643817681603,0.10238787,2660.9,2660.2,0.17749506]
[1643817681793,0.10238787,2660.9,2660.6,0.72747577]
[1643817681996,0.10370108,2660.9,2660.6,0.72747577]
[1643817682195,0.11033872,2660.9,2660.6,0.72747577]
[1643817682395,0.00506614,2660.7,2660.6,0.72747577]
[1643817682997,0.00506614,2660.7,2660.4,0.01]
[1643817683396,0.11033872,2660.9,2660.4,0.01]
[1643817683595,0.00506614,2660.7,2660.4,0.01]
[1643817684199,0.1879,2660.6,2660.4,0.85386512]
[1643817684850,0.00472376,2660.6,2660.4,0.85255999]
[1643817685055,0.1879,2660.5,2660.4,3.15255999]
[1643817685251,0.1879,2660.5,2660.3,1.88965]
[1643817685852,0.1879,2660.5,2660.3,1.88250883]
[1643817686055,0.00472381,2660.5,2660.3,1.88250883]
[1643817686252,0.1879,2660.4,2660.3,1.88250883]
[1643817686453,0.1879,2660.4,2660.3,5.05727376]
[1643817686857,0.00472381,2660.5,2660.4,4.8]
[1643817687053,0.11033872,2660.9,2660.4,4.8]
[1643817687253,0.1292311,2660.9,2660.5,0.01130513]
[1643817687452,0.03158954,2660.6,2660.5,0.01130513]
[1643817687652,0.03158954,2660.6,2660.5,0.00130513]
[1643817687851,0.03158954,2660.6,2660.5,3.51274721]
[1643817688051,0.03158954,2660.6,2660.5,3.3]
[1643817688291,0.03158954,2660.6,2660.4,0.01]
[1643817689292,0.03158954,2660.6,2660.4,0.17752796]
[1643817689498,0.00131321,2661.0,2660.4,0.17752796]
[1643817689499,0.00131321,2661.0,2660.6,4.5]
[1643817689694,0.02157485,2661.0,2660.7,0.01]
[1643817689894,3.44510317,2662.0,2660.8,4.35]
[1643817689895,2.0850966,2661.8,2660.8,4.35]
[1643817690100,1.05538511,2661.7,2660.9,0.18749506]
[1643817690307,0.42024657,2662.0,2661.1,0.01286041]
[1643817690308,0.32852364,2661.6,2661.1,0.01286041]
[1643817690496,0.00131321,2661.2,2661.1,0.01286041]
[1643817690695,0.21591208,2661.2,2661.1,0.19035547]
[1643817690895,0.24352597,2661.2,2661.1,0.19035547]
[1643817691094,0.24352597,2661.2,2661.1,3.79035547]
[1643817691299,0.24352597,2661.2,2661.1,4.46595151]
[1643817691497,0.00133918,2661.2,2661.1,4.46595151]
[1643817691697,0.21472484,2661.2,2661.1,3.79035547]
[1643817691897,0.24233873,2661.2,2661.1,3.79035547]
[1643817692555,0.24233873,2661.2,2661.1,0.17749506]
[1643817692751,0.24233873,2661.2,2660.9,0.00450641]
[1643817692949,0.24233873,2661.2,2660.8,0.01]
[1643817692950,0.1877,2661.1,2660.8,0.01]
[1643817693151,0.1877,2661.1,2660.6,0.01]
[1643817693353,0.1877,2661.1,2660.9,0.00450641]
[1643817693354,0.963,2661.1,2660.9,0.00450641]
[1643817693562,1.504,2661.1,2660.9,0.00135733]
[1643817693953,0.92384529,2661.0,2660.9,0.00135733]
[1643817694157,0.51174529,2661.0,2660.1,0.01130513]
[1643817694352,0.51174529,2661.0,2659.4,3.86533731]
[1643817694353,35.49152898,2660.9,2659.9,0.00130513]
[1643817694551,8.13872781,2660.8,2659.9,0.00130513]
[1643817694755,0.1879,2660.7,2659.9,0.00130513]
[1643817694952,1.44487814,2660.6,2659.6,0.68924653]
[1643817695155,0.1879,2660.5,2659.6,0.68924653]
[1643817695353,0.7289,2660.5,2659.6,0.68924653]
[1643817695555,0.7289,2660.5,2659.7,0.00130513]
[1643817695794,0.94032,2660.4,2660.0,0.00135238]
[1643817695999,0.1879,2660.3,2660.0,0.00135238]
[1643817696196,0.541,2660.5,2660.0,0.00135238]
[1643817696197,0.1879,2660.4,2660.0,0.00135238]
[1643817696394,0.1879,2660.2,2660.0,0.00135238]
[1643817696597,0.841,2660.5,2659.5,0.86858672]
[1643817696598,0.1879,2660.4,2659.5,0.86858672]
[1643817696796,0.541,2660.2,2659.6,0.00130513]
[1643817696997,0.541,2660.2,2659.4,0.01224225]
[1643817696998,0.1879,2660.1,2659.4,0.01223417]
[1643817697197,0.1879,2660.1,2659.4,0.01353961]
[1643817697695,0.1879,2660.1,2659.4,0.00130544]
[1643817697898,0.8362795,2659.6,2659.4,0.00130544]
[1643817698097,0.76589029,2660.0,2659.3,0.88897]
[1643817698098,0.729,2659.5,2659.3,0.88897]
[1643817698297,0.541,2659.4,2659.3,0.88897]
[1643817698496,0.541,2659.4,2659.1,0.01130544]
[1643817698699,0.841,2659.4,2659.1,0.01130544]
[1643817699295,0.841,2659.4,2659.1,0.01580694]
[1643817699757,0.541,2659.4,2659.1,0.01580694]
[1643817700157,0.541,2659.4,2659.1,0.01]